fUST/lending_fUST_20260324
["ID","MTS","AMOUNT","RATE_DAILY","PERIOD"]
[408818763,1774297841238,-2707.36729808,0.000254,2]
[408818764,1774297841248,-1215.27,0.00025479,4]
[408818765,1774297841258,-245.0,0.00025479,4]
[408818766,1774297841267,-543.9705526,0.000255,2]
[408818767,1774297841276,-5954.94499089,0.00025747,2]
[408818768,1774297841286,-1215.27,0.00025753,4]
[408818769,1774297841297,-543.9705526,0.000258,2]
[408818770,1774297841306,-2000.0,0.00025891,2]
[408818771,1774297841315,-1683.7,0.000259,2]
[408818772,1774297841328,-2191.713771,0.00025908,2]
[408818773,1774297841337,-19900.0,0.00026,2]
[408818774,1774297841345,-543.9705526,0.00026,2]
[408818775,1774297841354,-183.0,0.00026,2]
[408818776,1774297841363,-1215.27,0.00026027,4]
[408818777,1774297841372,-500.0,0.00026027,2]
[408818778,1774297841381,-945.0,0.00026199,30]
[408818779,1774297841395,-2191.713771,0.00026232,2]
[408818780,1774297841404,-1215.27,0.00026301,4]
[408818781,1774297841413,-287.88987767,0.00026475,2]
[408818782,1774297841422,-181.9,0.00026507,30]
[408818783,1774297841432,-2191.713771,0.00026556,2]
[408818784,1774297841441,-1215.27,0.00026575,4]
[408818785,1774297841451,-1060.36941013,0.00026575,2]
[408818786,1774297841460,-1215.27,0.00026849,4]
[408818787,1774297841469,-171.73,0.00026853,2]
[408818788,1774297841478,-2191.713771,0.00026879,2]
[408818789,1774297841487,-1683.7,0.000269,2]
[408818790,1774297841497,-270.83333333,0.00027,3]
[408818791,1774297841506,-190.0,0.00027,2]
[408818792,1774297841515,-1215.27,0.00027123,4]
[408818793,1774297841525,-2191.713771,0.00027203,2]
[408818794,1774297841534,-1215.27,0.00027397,4]
[408818795,1774297841544,-293257.402,0.00027444,2]
[408818796,1774297841554,-396.44439404,0.00027646,7]
[408818797,1774297841563,-1215.27,0.00027671,4]
[408818798,1774297841572,-1683.7,0.000279,2]
[408818799,1774297841582,-1215.27,0.00027945,4]
[408818800,1774297841591,-181.9,0.00028015,60]
[408818801,1774297841601,-183.0,0.00028055,30]
[408818802,1774297841610,-5954.94499089,0.00028106,2]
[408818803,1774297841619,-151.0,0.00028219,2]
[408818804,1774297841628,-1215.49,0.00028219,4]
[408818805,1774297841637,-451.59196497,0.00028501,7]
[408818806,1774297841646,-1683.7,0.000289,2]
[408818807,1774297841655,-151.0,0.00028904,3]
[408818808,1774297841664,-183.0,0.00029055,30]
[408818809,1774297841673,-86527.70036529,0.00029444,2]
[408818820,1774297843142,-380.183,0.00018593,2]
[408818821,1774297843154,-1306.277326,0.00018593,2]
[408818822,1774297843163,-428.51872636,0.00018595,2]
[408818831,1774298403480,186.98,2e-05,2]
[408818846,1774299029053,-300.0,2.058e-05,2]
[408818847,1774299030975,-300.0,2.058e-05,2]
[408818871,1774299032060,-1410.83091649,2.058e-05,2]
[408818939,1774299032707,-300.0,2.058e-05,2]
[408819035,1774299034508,-300.0,2.058e-05,2]
[408819036,1774299036379,-300.0,2.058e-05,2]
[408819039,1774299038253,-2089.16908351,2.058e-05,2]
[408819040,1774299038262,-186.98,2.2e-05,2]
[408819041,1774299038272,-1000.0,0.00013699,2]
[408819042,1774299038280,-202.63783014,0.00017699,3]
[408819043,1774299038289,-1200.0,0.00017996,2]
[408819044,1774299038301,-300.0,0.00017999,2]
[408819045,1774299038311,-300.0,0.00017999,2]
[408819046,1774299038321,-2711.23,0.00018,2]
[408819047,1774299038332,-600.0,0.00018966,2]
[408819049,1774299038343,-641.0,0.00019714,2]
[408819051,1774299038353,-2189.0,0.00019714,2]
[408819053,1774299038363,-1399.0,0.00019714,2]
[408819055,1774299038373,-150.399,0.00019714,2]
[408819057,1774299038383,-2100.0,0.00020492,2]
[408819058,1774299038394,-720.0,0.00020862,2]
[408819060,1774299038403,-161.920519,0.00022435,2]
[408819062,1774299038413,-641.0,0.00022714,2]
[408819064,1774299038423,-1399.0,0.00022714,2]
[408819066,1774299038432,-864.0,0.00022949,10]
[408819068,1774299038441,-270.83333333,0.00023,2]
[408819070,1774299038451,-170.091,0.00023333,3]
[408819072,1774299038461,-788.0,0.000236,2]
[408819073,1774299038471,-500.0,0.00024735,2]
[408819075,1774299038481,-179.9820018,0.00024992,2]
[408819076,1774299038491,-1034.96381941,0.00025,2]
[408819077,1774299038500,-448.85434294,0.00025,2]
[408819078,1774299038510,-21.72694115,0.00025241,2]
[408819079,1774299038523,-4978.27305885,0.00025241,2]
[408819080,1774299038532,-157.25774294,0.00025241,2]
[408819081,1774299038543,-500.0,0.00025241,2]
[408819082,1774299038553,-500.0,0.00025241,2]
[408819083,1774299038563,-500.0,0.00025241,2]
[408819084,1774299038575,-17090.97694383,0.00025242,2]
[408820357,1774299603933,113.02,2e-05,2]
[408820358,1774299603960,73.9,2e-05,2]
[408820359,1774299626160,5000.0,3e-05,10]
[408820399,1774300232287,-379.52510346,2.079e-05,2]
[408820401,1774300232299,-673.65800602,2.079e-05,2]
[408820460,1774300238369,-3946.81689052,2.079e-05,2]
[408820462,1774300238378,-186.92,2.1e-05,2]
[408820464,1774300238388,-186.92,2.2e-05,2]
[408820466,1774300238397,-1000.0,0.00013699,2]
[408820468,1774300238406,-1200.0,0.00016998,2]
[408820470,1774300238415,-1000.0,0.00017,2]
[408820472,1774300238424,-184.0,0.00017699,3]
[408820474,1774300238434,-300.0,0.00017972,2]
[408820476,1774300238443,-1399.0,0.00017974,2]
[408820478,1774300238458,-641.0,0.00017974,2]
[408820480,1774300238471,-438.0,0.00017974,2]
[408820482,1774300238479,-735.0,0.00017974,2]
[408820484,1774300238488,-187.905,0.00017974,2]
[408820486,1774300238497,-1399.0,0.00020974,2]
[408820488,1774300238506,-636.0,0.00020974,2]
[408820490,1774300238515,-438.0,0.00020974,2]
[408820492,1774300238523,-735.0,0.00020974,2]
[408820494,1774300238532,-183.0,0.00020974,2]
[408820496,1774300238541,-150.0,0.00021,2]
[408820498,1774300238550,-3902.2761217,0.00021466,2]
[408820500,1774300238559,-270.83333333,0.00023,2]
[408820501,1774300238568,-161.0,0.00023726,11]
[408820503,1774300238577,-511.29242274,0.00023847,2]
[408820505,1774300238586,-1389.0,0.00023974,2]
[408820507,1774300238595,-438.0,0.00023974,2]
[408820508,1774300238604,-735.0,0.00023974,2]
[408820509,1774300238614,-183.0,0.00023974,2]
[408820510,1774300238625,-485.0,0.000242,2]
[408820511,1774300238636,-358.8439349,0.00024658,2]
[408820512,1774300238646,-5650.0,0.00024692,10]
[408820513,1774300238656,-564.0,0.00024692,10]
[408820514,1774300238666,-358.0,0.00024801,2]
[408820515,1774300238676,-179.9640072,0.00024992,2]
[408820516,1774300238685,-993.56526663,0.00025,2]
[408820517,1774300238694,-5000.0,0.00025019,2]
[408820518,1774300238704,-114217.89346847,0.0002502,2]
[408820519,1774300238716,-1236.73712935,0.0002502,2]
[408820520,1774300238732,-40101.74961497,0.0002502,2]
[408820524,1774300240892,-587.0,0.0002502,2]
[408820525,1774300240944,-967.61586635,0.0002502,2]
[408820535,1774300243467,-352.86948732,0.0002502,2]
[408820536,1774300243518,-300.0,0.0002502,2]
[408820537,1774300243529,-2710.88604819,0.0002502,2]
[408820538,1774300243540,-1540.817128,0.0002502,2]
[408820539,1774300243550,-1891.0220345,0.0002502,2]
[408820549,1774300246649,-11461.53119502,0.0002502,2]
[408820550,1774300246660,-12490.123765,0.0002502,2]
[408820551,1774300246704,-796.3799828,0.0002502,2]
[408820552,1774300259086,10000.0,3e-05,10]
[408820555,1774300803474,186.91,2e-05,2]
[408820564,1774301403262,39.19,2e-05,2]
[408820565,1774301403288,115.34,2e-05,2]
[408820568,1774301424059,-154.53,2.2e-05,2]
[408820653,1774301440828,-747.57548995,4.455e-05,2]
[408820666,1774301443671,-4252.42451005,4.455e-05,2]
[408820667,1774301443682,-1000.0,0.00013699,2]
[408820668,1774301443693,-202.0,0.00017699,3]
[408820669,1774301443703,-270.83333333,0.00023222,2]
[408820670,1774301443714,-337.0,0.00024684,2]
[408820671,1774301443724,-490.3204632,0.000248,2]
[408820672,1774301443736,-1000.0,0.00024805,4]
[408820673,1774301443746,-2560.84402046,0.00024805,2]
[408820674,1774301443756,-500.0,0.00024806,2]
[408820675,1774301443766,-500.0,0.00024806,2]
[408820676,1774301443777,-500.0,0.00024806,2]
[408820677,1774301443787,-500.0,0.00024806,2]
[408820678,1774301443799,-500.0,0.00024806,2]
[408820679,1774301443809,-500.0,0.00024806,2]
[408820680,1774301443819,-500.0,0.00024806,2]
[408820681,1774301443829,-602.32058987,0.00024806,2]
[408820682,1774301443839,-500.0,0.00024806,2]
[408820683,1774301444054,-500.0,0.00024806,2]
[408820684,1774301444066,-500.0,0.00024806,2]
[408820685,1774301444076,-500.0,0.00024806,2]
[408820686,1774301444085,-500.0,0.00024806,2]
[408820687,1774301444094,-500.0,0.00024806,2]
[408820688,1774301444104,-310.66401768,0.00024806,2]
[408820689,1774301444113,-500.0,0.00024806,2]
[408820690,1774301444122,-283.0955275,0.00024806,2]
[408820691,1774301444134,-216.9044725,0.00024806,2]
[408820692,1774301444144,-500.0,0.00024806,2]
[408820693,1774301444153,-500.0,0.00024806,2]
[408820694,1774301444163,-500.0,0.00024806,2]
[408820695,1774301444172,-500.0,0.00024806,2]
[408820696,1774301444181,-500.0,0.00024806,2]
[408820697,1774301444190,-500.0,0.00024806,2]
[408820698,1774301444199,-500.0,0.00024806,2]
[408820699,1774301444208,-500.0,0.00024806,2]
[408820700,1774301444217,-500.0,0.00024806,2]
[408820701,1774301444228,-500.0,0.00024806,2]
[408820702,1774301444237,-500.0,0.00024806,2]
[408820703,1774301444248,-500.0,0.00024806,2]
[408820704,1774301444259,-500.0,0.00024806,2]
[408820705,1774301444269,-500.0,0.00024806,2]
[408820706,1774301444280,-500.0,0.00024806,2]
[408820707,1774301444291,-500.0,0.00024806,2]
[408820708,1774301444301,-500.0,0.00024806,2]
[408820709,1774301444311,-500.0,0.00024806,2]
[408820710,1774301444320,-197.62680003,0.00024806,2]
[408820711,1774301444330,-500.0,0.00024806,2]
[408820712,1774301444339,-500.0,0.00024806,2]
[408820713,1774301444350,-500.0,0.00024806,2]
[408820714,1774301444360,-500.0,0.00024806,2]
[408820715,1774301444374,-500.0,0.00024806,2]
[408820716,1774301444383,-500.0,0.00024806,2]
[408820717,1774301444393,-500.0,0.00024806,2]
[408820718,1774301444402,-500.0,0.00024806,2]
[408820719,1774301444422,-500.0,0.00024806,2]
[408820720,1774301444434,-16.11677685,0.00024806,2]
[408820721,1774301444449,-483.88322315,0.00024806,2]
[408820722,1774301444459,-443.27763305,0.00024806,2]
[408820740,1774301447202,-56.72236695,0.00024806,2]
[408820741,1774301447212,-500.0,0.00024806,2]
[408820742,1774301447221,-500.0,0.00024806,2]
[408820743,1774301447230,-500.0,0.00024806,2]
[408820744,1774301447239,-500.0,0.00024806,2]
[408820745,1774301447249,-500.0,0.00024806,2]
[408820746,1774301447258,-500.0,0.00024806,2]
[408820747,1774301447268,-500.0,0.00024806,2]
[408820748,1774301447277,-500.0,0.00024806,2]
[408820749,1774301447286,-500.0,0.00024806,2]
[408820750,1774301447296,-500.0,0.00024806,2]
[408820751,1774301447305,-500.0,0.00024806,2]
[408820752,1774301447315,-500.0,0.00024806,2]
[408820753,1774301447324,-500.0,0.00024806,2]
[408820754,1774301447333,-500.0,0.00024806,2]
[408820755,1774301447343,-500.0,0.00024806,2]
[408820756,1774301447352,-214.95983133,0.00024806,2]
[408820757,1774301447373,-285.04016867,0.00024806,2]
[408820758,1774301447382,-500.0,0.00024806,2]
[408820759,1774301447391,-500.0,0.00024806,2]
[408820760,1774301447400,-500.0,0.00024806,2]
[408820761,1774301447410,-500.0,0.00024806,2]
[408820762,1774301447420,-500.0,0.00024806,2]
[408820763,1774301447429,-500.0,0.00024806,2]
[408820764,1774301447439,-500.0,0.00024806,2]
[408820765,1774301447448,-500.0,0.00024806,2]
[408820766,1774301447458,-500.0,0.00024806,2]
[408820767,1774301447467,-500.0,0.00024806,2]
[408820768,1774301447476,-500.0,0.00024806,2]
[408820769,1774301447486,-253.63913204,0.00024806,2]
[408820770,1774301447495,-500.0,0.00024806,2]
[408820771,1774301447504,-500.0,0.00024806,2]
[408820772,1774301447514,-500.0,0.00024806,2]
[408820773,1774301447523,-500.0,0.00024806,2]
[408820774,1774301447534,-500.0,0.00024806,2]
[408820775,1774301447543,-500.0,0.00024806,2]
[408820776,1774301447552,-500.0,0.00024806,2]
[408820777,1774301447561,-500.0,0.00024806,2]
[408820778,1774301447571,-500.0,0.00024806,2]
[408820779,1774301447580,-500.0,0.00024806,2]
[408820780,1774301447590,-500.0,0.00024806,2]
[408820781,1774301447599,-500.0,0.00024806,2]
[408820782,1774301447608,-500.0,0.00024806,2]
[408820783,1774301447618,-500.0,0.00024806,2]
[408820784,1774301447628,-500.0,0.00024806,2]
[408820785,1774301447638,-500.0,0.00024806,2]
[408820786,1774301447648,-500.0,0.00024806,2]
[408820787,1774301447658,-500.0,0.00024806,2]
[408820788,1774301447667,-500.0,0.00024806,2]
[408820789,1774301447677,-500.0,0.00024806,2]
[408820790,1774301447686,-500.0,0.00024806,2]
[408820791,1774301447695,-500.0,0.00024806,2]
[408820792,1774301447704,-500.0,0.00024806,2]
[408820793,1774301447713,-500.0,0.00024806,2]
[408820794,1774301447723,-500.0,0.00024806,2]
[408820795,1774301447732,-500.0,0.00024806,2]
[408820796,1774301447741,-500.0,0.00024806,2]
[408820797,1774301447751,-500.0,0.00024806,2]
[408820798,1774301447760,-500.0,0.00024806,2]
[408820799,1774301447769,-500.0,0.00024806,2]
[408820800,1774301447778,-155.0,0.00024806,2]
[408820801,1774301447787,-500.0,0.00024806,2]
[408820802,1774301447797,-500.0,0.00024806,2]
[408820803,1774301447806,-500.0,0.00024806,2]
[408820804,1774301447815,-500.0,0.00024806,2]
[408820805,1774301447824,-450.0,0.00024806,2]
[408820806,1774301447834,-500.0,0.00024806,2]
[408820807,1774301447843,-500.0,0.00024806,2]
[408820808,1774301447852,-500.0,0.00024806,2]
[408820809,1774301447861,-500.0,0.00024806,2]
[408820810,1774301447870,-500.0,0.00024806,2]
[408820811,1774301447879,-81504.00654447,0.00024807,2]
[408820812,1774301447891,-610.99505787,0.00024807,2]
[408820813,1774301493325,154.53,9.905e-05,2]
[408820817,1774302003367,159.99,2e-05,2]
[408820818,1774302230522,24.67,2.008e-05,2]
[408820819,1774302230549,300.0,2.008e-05,2]
[408820820,1774302230582,300.0,2.008e-05,2]
[408820821,1774302230611,300.0,2.008e-05,2]
[408820822,1774302230641,300.0,2.008e-05,2]
[408820823,1774302230671,300.0,2.008e-05,2]
[408820824,1774302230700,300.0,2.008e-05,2]
[408820825,1774302404674,1598.80439192,2.007e-05,2]
[408820826,1774302419743,5000.0,2.007e-05,2]
[408820836,1774302603503,157.69,2e-05,2]
[408820861,1774302631583,-602.08482429,2.079e-05,2]
[408820863,1774302631595,-397.91517571,2.079e-05,2]
[408820865,1774302631606,-1259.76777739,2.079e-05,2]
[408820939,1774302637718,-5000.0,2.058e-05,2]
[408820940,1774302637728,-159.99,2.1e-05,2]
[408820941,1774302637740,-157.69,2.1e-05,2]
[408820942,1774302637749,-159.99,2.2e-05,2]
[408820943,1774302637759,-157.69,2.2e-05,2]
[408820944,1774302637770,-800.0,3.211e-05,3]
[408820945,1774302637780,-800.0,8.077e-05,3]
[408820946,1774302637790,-800.0,0.00012442,4]
[408820947,1774302637800,-156.0,0.00013699,2]
[408820948,1774302637809,-156.0,0.00013699,2]
[408820949,1774302637819,-1000.0,0.00013699,2]
[408820950,1774302637828,-300.0,0.00014668,2]
[408820951,1774302637837,-300.0,0.00014668,2]
[408820952,1774302637847,-500.0,0.00014669,2]
[408820953,1774302637856,-500.0,0.00014859,2]
[408820954,1774302637865,-500.0,0.00015201,2]
[408820956,1774302637875,-608.90405947,0.00015699,2]
[408820958,1774302637884,-500.0,0.00016001,2]
[408820960,1774302637893,-300.0,0.00016059,2]
[408820962,1774302637902,-420.0,0.00016059,2]
[408820963,1774302637912,-800.0,0.00016357,5]
[408820964,1774302637921,-391.33560892,0.00016645,2]
[408820965,1774302637931,-587.0,0.00017581,2]
[408820966,1774302637941,-157.0,0.00017699,3]
[408820967,1774302637950,-528.364137,0.00018618,2]
[408820968,1774302637959,-156.0,0.00019347,2]
[408820969,1774302637968,-528.364137,0.00019402,2]
[408820970,1774302637978,-800.0,0.00019869,5]
[408820971,1774302637988,-528.364137,0.00020186,2]
[408820972,1774302637997,-528.364137,0.0002097,2]
[408820973,1774302638006,-2190.0,0.00021507,2]
[408820974,1774302638016,-641.0,0.00021507,2]
[408820975,1774302638025,-391.211,0.00021507,2]
[408820976,1774302638035,-250.826,0.00021507,2]
[408820977,1774302638044,-528.364137,0.00021753,2]
[408820978,1774302638053,-161.21879703,0.00022387,2]
[408820979,1774302638062,-528.364137,0.00022537,2]
[408820980,1774302638071,-1000.0,0.00022742,30]
[408820981,1774302638080,-270.83333333,0.00023,2]
[408820982,1774302638090,-800.0,0.00023019,9]
[408820983,1774302638099,-282.0,0.00024155,2]
[408820984,1774302638109,-290.19383465,0.00024211,2]
[408820985,1774302638127,-396.2590675,0.00024211,2]
[408820986,1774302638137,-2593.42928901,0.00024268,2]
[408820987,1774302638147,-215.62128943,0.00024359,2]
[408820988,1774302638156,-287.19319534,0.00024359,2]
[408820989,1774302638165,-500.0,0.00024359,2]
[408820990,1774302638174,-500.0,0.00024359,2]
[408820991,1774302638183,-201.18489085,0.00024359,2]
[408820992,1774302638192,-500.0,0.00024359,2]
[408820993,1774302638201,-498.45220221,0.00024359,2]
[408820994,1774302638210,-500.0,0.00024359,2]
[408820995,1774302638219,-500.0,0.00024359,2]
[408820996,1774302638228,-500.0,0.00024359,2]
[408820997,1774302638238,-500.0,0.00024359,2]
[408820998,1774302638247,-500.0,0.00024359,2]
[408820999,1774302638256,-500.0,0.00024359,2]
[408821000,1774302638266,-500.0,0.00024359,2]
[408821001,1774302638275,-500.0,0.00024359,2]
[408821002,1774302638284,-500.0,0.00024359,2]
[408821003,1774302638294,-500.0,0.00024359,2]
[408821004,1774302638303,-500.0,0.00024359,2]
[408821005,1774302638312,-500.0,0.00024359,2]
[408821006,1774302638321,-500.0,0.00024359,2]
[408821007,1774302638330,-500.0,0.00024359,2]
[408821008,1774302638340,-500.0,0.00024359,2]
[408821009,1774302638349,-500.0,0.00024359,2]
[408821010,1774302638358,-500.0,0.00024359,2]
[408821011,1774302638367,-500.0,0.00024359,2]
[408821012,1774302638376,-500.0,0.00024359,2]
[408821013,1774302638385,-500.0,0.00024359,2]
[408821014,1774302638394,-500.0,0.00024359,2]
[408821015,1774302638403,-500.0,0.00024359,2]
[408821016,1774302638413,-500.0,0.00024359,2]
[408821017,1774302638422,-500.0,0.00024359,2]
[408821018,1774302638431,-392.24571082,0.00024359,2]
[408821019,1774302638441,-500.0,0.00024359,2]
[408821020,1774302638451,-500.0,0.00024359,2]
[408821021,1774302638460,-500.0,0.00024359,2]
[408821022,1774302638470,-500.0,0.00024359,2]
[408821023,1774302638479,-500.0,0.00024359,2]
[408821024,1774302638488,-500.0,0.00024359,2]
[408821025,1774302638498,-500.0,0.00024359,2]
[408821026,1774302638507,-500.0,0.00024359,2]
[408821027,1774302638517,-500.0,0.00024359,2]
[408821028,1774302638526,-500.0,0.00024359,2]
[408821029,1774302638535,-500.0,0.00024359,2]
[408821030,1774302638544,-500.0,0.00024359,2]
[408821031,1774302638554,-220.40361567,0.00024359,2]
[408821032,1774302638564,-500.0,0.00024359,2]
[408821033,1774302638573,-500.0,0.00024359,2]
[408821034,1774302638583,-500.0,0.00024359,2]
[408821035,1774302638592,-500.0,0.00024359,2]
[408821036,1774302638601,-500.0,0.00024359,2]
[408821037,1774302638611,-500.0,0.00024359,2]
[408821038,1774302638620,-496.90416481,0.00024359,2]
[408821039,1774302638630,-500.0,0.00024359,2]
[408821040,1774302638639,-500.0,0.00024359,2]
[408821041,1774302638649,-500.0,0.00024359,2]
[408821042,1774302638658,-500.0,0.00024359,2]
[408821043,1774302638667,-500.0,0.00024359,2]
[408821044,1774302638677,-500.0,0.00024359,2]
[408821045,1774302638686,-500.0,0.00024359,2]
[408821046,1774302638699,-500.0,0.00024359,2]
[408821047,1774302638709,-500.0,0.00024359,2]
[408821048,1774302638718,-500.0,0.00024359,2]
[408821049,1774302638727,-500.0,0.00024359,2]
[408821050,1774302638737,-500.0,0.00024359,2]
[408821051,1774302638747,-500.0,0.00024359,2]
[408821052,1774302638756,-500.0,0.00024359,2]
[408821053,1774302638766,-500.0,0.00024359,2]
[408821054,1774302638777,-500.0,0.00024359,2]
[408821055,1774302638787,-500.0,0.00024359,2]
[408821056,1774302638796,-500.0,0.00024359,2]
[408821057,1774302638805,-500.0,0.00024359,2]
[408821058,1774302638815,-500.0,0.00024359,2]
[408821059,1774302638824,-500.0,0.00024359,2]
[408821060,1774302638834,-500.0,0.00024359,2]
[408821061,1774302638843,-500.0,0.00024359,2]
[408821062,1774302638852,-500.0,0.00024359,2]
[408821063,1774302638862,-500.0,0.00024359,2]
[408821064,1774302638871,-500.0,0.00024359,2]
[408821065,1774302638881,-500.0,0.00024359,2]
[408821066,1774302638890,-250.0,0.00024359,2]
[408821067,1774302638899,-31080.7933425,0.0002436,2]
[408821068,1774302638912,-9475.9575471,0.0002436,2]
[408821069,1774302638923,-1659443.2491104,0.0002436,2]
[408821070,1774302638932,-170.091,0.00024368,6]
[408821071,1774302638941,-151.0,0.000244,7]
[408821072,1774302638951,-151.0,0.000244,9]
[408821073,1774302638960,-151.0,0.000244,7]
[408821074,1774302638969,-151.0,0.000244,9]
[408821075,1774302638978,-151.0,0.000244,9]
[408821076,1774302638988,-151.0,0.000244,5]
[408821077,1774302638997,-151.0,0.000244,10]
[408821078,1774302639171,-151.0,0.000244,5]
[408821079,1774302639182,-151.0,0.000244,6]
[408821080,1774302639191,-151.0,0.000244,8]
[408821081,1774302639200,-151.0,0.000244,7]
[408821082,1774302639211,-151.0,0.000244,5]
[408821083,1774302639221,-151.0,0.000244,10]
[408821084,1774302639230,-587.94199552,0.00024459,2]
[408821085,1774302639239,-500.0,0.00024459,2]
[408821086,1774302639248,-151.0,0.00024459,2]
[408821087,1774302639257,-151.0,0.00024459,2]
[408821088,1774302639266,-1000.0,0.00024459,2]
[408821089,1774302639275,-151.0,0.00024459,2]
[408821090,1774302639288,-500.0,0.00024459,4]
[408821091,1774302639298,-500.0,0.00024459,4]
[408821092,1774302639307,-500.0,0.00024459,4]
[408821093,1774302639317,-500.0,0.00024459,4]
[408821094,1774302639327,-500.0,0.00024459,4]
[408821095,1774302639336,-253.26,0.00024459,4]
[408821096,1774302639348,-246.811302,0.00024459,2]
[408821097,1774302639357,-196.548611,0.00024459,2]
[408821098,1774302639367,-246.811302,0.00024459,2]
[408821099,1774302639376,-196.548611,0.00024459,2]
[408821100,1774302639386,-246.811302,0.00024459,2]
[408821101,1774302639395,-196.548611,0.00024459,2]
[408821102,1774302639404,-246.811302,0.00024459,2]
[408821103,1774302639413,-960.021643,0.00024459,2]
[408821104,1774302639422,-196.548611,0.00024459,2]
[408821105,1774302639433,-960.021643,0.00024459,2]
[408821106,1774302639442,-960.021643,0.00024459,2]
[408821107,1774302639452,-960.021643,0.00024459,2]
[408821108,1774302639461,-367.505149,0.00024459,2]
[408821109,1774302639470,-367.505149,0.00024459,2]
[408821110,1774302639479,-367.505149,0.00024459,2]
[408821111,1774302639489,-367.505149,0.00024459,2]
[408821112,1774302639498,-498.1826,0.00024459,2]
[408821113,1774302639507,-498.1826,0.00024459,2]
[408821114,1774302639517,-498.1826,0.00024459,2]
[408821115,1774302639527,-498.1826,0.00024459,2]
[408821116,1774302639536,-151.0,0.00024459,2]
[408821117,1774302639546,-151.0,0.00024459,2]
[408821118,1774302639555,-966.324788,0.00024459,2]
[408821119,1774302639564,-966.324788,0.00024459,2]
[408821120,1774302639573,-966.324788,0.00024459,2]
[408821121,1774302639583,-966.324788,0.00024459,2]
[408821122,1774302639592,-966.324788,0.00024459,2]
[408821123,1774302639602,-966.324788,0.00024459,2]
[408821124,1774302639611,-966.324788,0.00024459,2]
[408821125,1774302639620,-966.324788,0.00024459,2]
[408821126,1774302639630,-151.0,0.00024459,2]
[408821127,1774302639640,-151.0,0.00024459,2]
[408821128,1774302639649,-46373.70650747,0.0002446,2]
[408821129,1774302639662,-3109.45023532,0.0002446,2]
[408821134,1774302640334,-198.0,0.00024359,2]
[408821135,1774302640345,-151.0,0.00024459,2]
[408821136,1774302640354,-151.0,0.00024459,2]
[408821137,1774302640364,-151.0,0.00024459,2]
[408821138,1774302640373,-38.93964682,0.0002446,2]
[408821154,1774302645419,-438.0,0.00021507,2]
[408821156,1774302645429,-151.0,0.00024459,2]
[408821157,1774302645438,-151.0,0.00024459,2]
[408821158,1774302645447,-151.0,0.00024459,2]
[408821159,1774302645456,-1580.711373,0.00024459,2]
[408821160,1774302645465,-1580.711373,0.00024459,2]
[408821161,1774302645475,-1580.711373,0.00024459,2]
[408821162,1774302645483,-1580.711373,0.00024459,2]
[408821163,1774302645492,-34604.07914981,0.0002446,2]
[408821164,1774302645504,-701.62763894,0.0002446,2]
[408821165,1774302645515,-361.0,0.0002446,2]
[408821166,1774302645527,-771.14628782,0.0002446,2]
[408821167,1774302645537,-493.6422938,0.0002446,2]
[408821168,1774302645548,-1897.02652798,0.0002446,2]